[Event "Marienbad Open-A1 2019"]
[Site "Marianske Lazne"]
[Date "2019.01.20"]
[Round "2"]
[White "Gumularz, Szymon"]
[Black "Chernyshov, Konstantin"]
[Result "1/2-1/2"]
[ECO "B12"]
[WhiteElo "2475"]
[BlackElo "2500"]
[Annotator "ChessBase"]
[PlyCount "92"]
[EventDate "2019.01.17"]
[EventType "tourn"]
[EventCountry "CZE"]
[SourceTitle "playchess.com"]
[Source "ChessBase"]
[SourceQuality "1"]
[TimeControl "40/5400+30:1800+30"]

1. e4 {[%emt 0:00:00]} c6 {[%emt 0:00:08]} 2. d4 {[%emt 0:00:00]} d5 {[%emt 0:00:07]} 3. e5 {[%emt 0:00:05]} g6 {[%emt 0:00:44]} 4. c4 {[%emt 0:01:19]} Bg7 {[%emt 0:03:33]} 5. Nc3 {[%emt 0:00:24]} Nh6 {[%emt 0:01:43]} 6. Nf3 {[%emt 0:07:07]} O-O {[%emt 0:02:56]} 7. h3 {[%emt 0:10:27]} Na6 {[%emt 0:02:26]} 8. cxd5 {[%emt 0:05:13]} cxd5 {[%emt 0:00:43]} 9. Bf4 {[%emt 0:00:11]} Kh8 {[%emt 0:11:02]} 10. Qd2 {[%emt 0:08:08]} Ng8 {[%emt 0:00:10]} 11. Be2 {[%emt 0:00:24]} Nc7 {[%emt 0:01:31]} 12. O-O {[%emt 0:07:16]} Ne6 {[%emt 0:05:40]} 13. Be3 {[%emt 0:01:06]} b6 {[%emt 0:01:42]} 14. Rac1 {[%emt 0:01:35]} Bb7 {[%emt 0:01:31]} 15. Nh2 {[%emt 0:04:50]} f6 {[%emt 0:09:52]} 16. f4 {[%emt 0:09:50]} Nh6 {[%emt 0:01:52]} 17. g4 {[%emt 0:02:32]} Nf7 {[%emt 0:00:26]} 18. Nf3 {[%emt 0:04:28]} fxe5 {[%emt 0:00:54]} 19. fxe5 {[%emt 0:05:50]} Qd7 {[%emt 0:01:29]} 20. Rf2 {[%emt 0:00:59]} Nfd8 {[%emt 0:02:25]} 21. Rcf1 {[%emt 0:06:12]} Nc6 {[%emt 0:00:34]} 22. Ng5 {[%emt 0:05:49]} Rxf2 {[%emt 0:08:11]} 23. Rxf2 {[%emt 0:00:28]} Nxg5 {[%emt 0:01:32]} 24. Bxg5 {[%emt 0:00:05]} Rf8 {[%emt 0:00:08]} 25. Rxf8+ {[%emt 0:01:23]} Bxf8 {[%emt 0:00:05]} 26. Bf3 {[%emt 0:00:17]} e6 {[%emt 0:01:57]} 27. Bf6+ {[%emt 0:01:29]} Kg8 {[%emt 0:00:06]} 28. Kg2 {[%emt 0:00:11]} Ba6 {[%emt 0:03:43]} 29. h4 {[%emt 0:00:42]} Ne7 {[%emt 0:04:14]} 30. Qg5 {[%emt 0:04:29]} Qc7 {[%emt 0:04:45]} 31. Bd1 {[%emt 0:05:48]} Bd3 {[%emt 0:05:02]} 32. Qe3 {[%emt 0:01:37]} Ba6 {[%emt 0:00:50]} 33. Kg3 {[%emt 0:00:51]} Qc4 {[%emt 0:02:45]} 34. Be2 {[%emt 0:00:24]} Qc8 {[%emt 0:00:06]} 35. Bd1 {[%emt 0:00:02]} Qc4 {[%emt 0:00:24]} 36. Be2 {[%emt 0:03:51]} Qc8 {[%emt 0:00:06]} 37. Bf3 {[%emt 0:00:24]} Qc4 {[%emt 0:03:28]} 38. h5 {[%emt 0:01:24]} Qf1 {[%emt 0:03:12]} 39. Bg2 {[%emt 0:00:53]} Qd3 {[%emt 0:02:50]} 40. Qxd3 {[%emt 0:00:08]} Bxd3 {[%emt 0:00:06]} 41. hxg6 {[%emt 0:30:12]} hxg6 {[%emt 0:31:45]} 42. Kf4 {[%emt 0:00:00]} Kf7 {[%emt 0:00:00]} 43. Bf3 {[%emt 0:00:00]} Bc4 {[%emt 0:00:00]} 44. b3 {[%emt 0:00:00]} Ba6 {[%emt 0:00:00]} 45. Bxe7 {[%emt 0:00:00]} Bxe7 {[%emt 0:00:00]} 46. Be2 {[%emt 0:00:00]} Bb4 {Ke4} 1/2-1/2

[Event "Marienbad Open-A1 2019"]
[Site "Marianske Lazne"]
[Date "2019.01.20"]
[Round "2"]
[White "Rakesh Kumar Jena"]
[Black "Oboladze, Luka"]
[Result "0-1"]
[ECO "A45"]
[WhiteElo "2426"]
[BlackElo "2295"]
[Annotator "ChessBase"]
[PlyCount "76"]
[EventDate "2019.01.17"]
[EventType "tourn"]
[EventCountry "CZE"]
[SourceTitle "playchess.com"]
[Source "ChessBase"]
[SourceQuality "1"]
[TimeControl "40/5400+30:1800+30"]

1. d4 {[%emt 0:00:07]} Nf6 {[%emt 0:00:00]} 2. Bf4 {[%emt 0:00:06]} c5 {[%emt 0:00:00]} 3. e3 {[%emt 0:00:08]} b6 {[%emt 0:00:26]} 4. Nf3 {[%emt 0:00:18]} Bb7 {[%emt 0:00:09]} 5. Nbd2 {[%emt 0:00:13]} g6 {[%emt 0:00:41]} 6. Bd3 {[%emt 0:00:26]} Bg7 {[%emt 0:00:10]} 7. c3 {[%emt 0:00:59]} d6 {[%emt 0:01:10]} 8. h3 {[%emt 0:02:54]} O-O {[%emt 0:00:29]} 9. O-O {[%emt 0:00:20]} Nbd7 {[%emt 0:00:48]} 10. Bh2 {[%emt 0:00:06]} Qc7 {[%emt 0:06:31]} 11. a4 {[%emt 0:01:32]} a6 {[%emt 0:02:08]} 12. Qe2 {[%emt 0:00:55]} Rfe8 {[%emt 0:01:35]} 13. e4 {[%emt 0:02:40]} e5 {[%emt 0:00:39]} 14. dxe5 {[%emt 0:01:30]} Nxe5 {[%emt 0:03:40]} 15. Rfe1 {[%emt 0:04:11]} Nxd3 {[%emt 0:08:36]} 16. Qxd3 {[%emt 0:00:06]} Rad8 {[%emt 0:03:10]} 17. Bf4 {[%emt 0:08:59]} Qc6 {[%emt 0:07:15]} 18. Bg5 {[%emt 0:00:27]} h6 {[%emt 0:00:55]} 19. Bxf6 {[%emt 0:01:58]} Bxf6 {[%emt 0:00:02]} 20. h4 {[%emt 0:04:30]} h5 {[%emt 0:13:01]} 21. Qe3 {[%emt 0:09:32]} d5 {[%emt 0:05:07]} 22. e5 {[%emt 0:03:51]} Bg7 {[%emt 0:06:05]} 23. Qf4 {[%emt 0:01:04]} Re7 {[%emt 0:03:30]} 24. c4 {[%emt 0:05:05]} Qe6 {[%emt 0:02:01]} 25. cxd5 {[%emt 0:05:33]} Rxd5 {[%emt 0:03:37]} 26. Nc4 {[%emt 0:04:12]} Qg4 {[%emt 0:01:24]} 27. Qxg4 {[%emt 0:09:09]} hxg4 {[%emt 0:00:02]} 28. Nh2 {[%emt 0:00:09]} Rd4 {[%emt 0:11:25]} 29. Nxb6 {[%emt 0:01:31]} Rxe5 {[%emt 0:03:33]} 30. Rxe5 {[%emt 0:01:06]} Bxe5 {[%emt 0:00:03]} 31. Rc1 {[%emt 0:00:19]} g3 {[%emt 0:07:11]} 32. Nf3 {[%emt 0:01:40]} Bxf3 {[%emt 0:00:08]} 33. gxf3 {[%emt 0:00:01]} Rb4 {[%emt 0:03:51]} 34. Nd5 {[%emt 0:00:21]} gxf2+ {[%emt 0:01:58]} 35. Kxf2 {[%emt 0:00:45]} Rxb2+ {[%emt 0:00:08]} 36. Ke3 {[%emt 0:00:09]} Bd4+ {[%emt 0:00:15]} 37. Kf4 {[%emt 0:00:05]} Kg7 {[%emt 0:01:02]} 38. Nc7 {[%emt 0:00:48]} Rb4 {[%emt 0:00:53]} 0-1

[Event "Marienbad Open-A1 2019"]
[Site "Marianske Lazne"]
[Date "2019.01.20"]
[Round "2"]
[White "Makarian, Rudik"]
[Black "Simek, Petr"]
[Result "1-0"]
[ECO "A40"]
[WhiteElo "2354"]
[BlackElo "2330"]
[Annotator "ChessBase"]
[PlyCount "93"]
[EventDate "2019.01.17"]
[EventType "tourn"]
[EventCountry "CZE"]
[SourceTitle "playchess.com"]
[Source "ChessBase"]
[SourceQuality "1"]
[TimeControl "40/5400+30:1800+30"]

1. d4 Nf6 2. c4 e6 3. g3 c5 4. dxc5 Bxc5 5. Bg2 O-O 6. Nf3 d5 7. O-O Nc6 8. cxd5 exd5 9. a3 a5 10. b3 Re8 11. Bb2 Bg4 12. Nc3 d4 13. Na4 Ba7 14. Rc1 Qd6 15. Nc3 Qe7 16. Nb5 Bb6 17. Nbxd4 Nxd4 18. Bxd4 Rad8 19. e3 Qxa3 20. Qc2 Rc8 21. Qb1 Bxd4 22. Nxd4 Qb4 23. Qd3 h6 24. h3 Bh5 25. f4 Bg6 26. f5 Bh7 27. g4 Kf8 28. e4 Red8 29. Rxc8 Rxc8 30. e5 Rc3 31. Ne6+ fxe6 32. Qd8+ Kf7 33. fxe6+ Kxe6 34. exf6 Qc5+ 35. Kh1 Rxh3+ 36. Bxh3 Be4+ 37. Bg2 Bxg2+ 38. Kxg2 Qc2+ 39. Kf3 Qxb3+ 40. Ke2 Qc4+ 41. Qd3 Qxg4+ 42. Kd2 Qb4+ 43. Qc3 Qxc3+ 44. Kxc3 gxf6 45. Rb1 Kf5 46. Kd3 Kf4 47. Ke2 1-0

[Event "Marienbad Open-A1 2019"]
[Site "Marianske Lazne"]
[Date "2019.01.20"]
[Round "2"]
[White "Ajay Krishna, S."]
[Black "Cernousek, Lukas"]
[Result "1-0"]
[ECO "A09"]
[WhiteElo "2289"]
[BlackElo "2427"]
[Annotator "ChessBase"]
[PlyCount "77"]
[EventDate "2019.01.17"]
[EventType "tourn"]
[EventCountry "CZE"]
[SourceTitle "playchess.com"]
[Source "ChessBase"]
[SourceQuality "1"]
[TimeControl "40/5400+30:1800+30"]

1. Nf3 {[%emt 0:00:17]} d5 {[%emt 0:00:00]} 2. c4 {[%emt 0:00:12]} d4 {[%emt 0:00:00]} 3. e3 {[%emt 0:01:20]} Nc6 {[%emt 0:00:00]} 4. d3 {[%emt 0:00:24]} e5 {[%emt 0:04:13]} 5. a3 {[%emt 0:00:22]} a5 {[%emt 0:07:43]} 6. exd4 {[%emt 0:06:26]} exd4 {[%emt 0:00:11]} 7. Qe2+ {[%emt 0:03:13]} Be7 {[%emt 0:06:46]} 8. g3 {[%emt 0:07:19]} Nf6 {[%emt 0:01:01]} 9. Bg2 {[%emt 0:00:14]} O-O {[%emt 0:00:08]} 10. O-O {[%emt 0:00:09]} Re8 {[%emt 0:07:20]} 11. Qc2 {[%emt 0:01:06]} Nd7 {[%emt 0:14:28]} 12. Nbd2 {[%emt 0:12:13]} Nc5 {[%emt 0:00:16]} 13. Nb3 {[%emt 0:06:06]} Ne6 {[%emt 0:03:38]} 14. Bd2 {[%emt 0:01:02]} a4 {[%emt 0:04:40]} 15. Nc1 {[%emt 0:00:26]} Nc5 {[%emt 0:00:16]} 16. Bb4 {[%emt 0:04:29]} Bf5 {[%emt 0:03:59]} 17. Bxc5 {[%emt 0:03:01]} Bxc5 {[%emt 0:00:01]} 18. Nd2 {[%emt 0:00:39]} Qd7 {[%emt 0:02:56]} 19. Na2 {[%emt 0:07:33]} Bf8 {[%emt 0:15:10]} 20. Rae1 {[%emt 0:12:47]} Ne5 {[%emt 0:00:42]} 21. Nc1 {[%emt 0:01:30]} c5 {[%emt 0:01:19]} 22. Nf3 {[%emt 0:11:01]} Nxf3+ {[%emt 0:09:39]} 23. Bxf3 {[%emt 0:00:02]} Rab8 {[%emt 0:00:04]} 24. Rxe8 {[%emt 0:09:06]} Rxe8 {[%emt 0:04:28]} 25. b3 {[%emt 0:00:27]} Bh3 {[%emt 0:04:47]} 26. Bg2 {[%emt 0:00:35]} Bxg2 {[%emt 0:01:30]} 27. Kxg2 {[%emt 0:00:02]} Qc6+ {[%emt 0:05:45]} 28. Kg1 {[%emt 0:00:10]} axb3 {[%emt 0:00:12]} 29. Nxb3 {[%emt 0:01:30]} Qf3 {[%emt 0:00:55]} 30. Qd1 {[%emt 0:00:31]} Qf5 {[%emt 0:00:56]} 31. Nc1 {[%emt 0:00:39]} h5 {[%emt 0:01:42]} 32. Re1 {[%emt 0:02:33]} Ra8 {[%emt 0:00:01]} 33. a4 {[%emt 0:01:09]} h4 {[%emt 0:00:34]} 34. Ne2 {[%emt 0:01:47]} Bd6 {[%emt 0:00:44]} 35. gxh4 {[%emt 0:01:06]} Qg4+ {[%emt 0:00:51]} 36. Ng3 {[%emt 0:00:03]} Qxh4 {[%emt 0:00:20]} 37. Qf3 {[%emt 0:00:39]} Rxa4 {[%emt 0:00:43]} 38. Re8+ {[%emt 0:03:06]} Bf8 {[%emt 0:00:01]} 39. Qd5 {[%emt 0:01:17]} 1-0

[Event "Marienbad Open-A1 2019"]
[Site "Marianske Lazne"]
[Date "2019.01.21"]
[Round "3"]
[White "Chernyshov, Konstantin"]
[Black "Rakesh Kumar Jena"]
[Result "0-1"]
[ECO "A14"]
[WhiteElo "2500"]
[BlackElo "2426"]
[Annotator "ChessBase"]
[PlyCount "82"]
[EventDate "2019.01.17"]
[EventType "tourn"]
[EventCountry "CZE"]
[SourceTitle "playchess.com"]
[Source "ChessBase"]
[SourceQuality "1"]
[TimeControl "40/5400+30:1800+30"]

1. c4 {[%emt 0:00:00]} Nf6 {[%emt 0:02:32]} 2. g3 {[%emt 0:00:07]} e6 {[%emt 0:00:29]} 3. Bg2 {[%emt 0:00:08]} d5 {[%emt 0:00:15]} 4. Nf3 {[%emt 0:00:42]} Be7 {[%emt 0:00:30]} 5. O-O {[%emt 0:00:41]} O-O {[%emt 0:00:05]} 6. b3 {[%emt 0:00:56]} b6 {[%emt 0:00:18]} 7. Bb2 {[%emt 0:02:47]} Bb7 {[%emt 0:00:15]} 8. cxd5 {[%emt 0:00:18]} exd5 {[%emt 0:00:08]} 9. d4 {[%emt 0:03:13]} Nbd7 {[%emt 0:00:33]} 10. Nbd2 {[%emt 0:03:57]} Re8 {[%emt 0:01:48]} 11. Rc1 {[%emt 0:03:31]} Bd6 {[%emt 0:01:05]} 12. Re1 {[%emt 0:01:55]} a5 {[%emt 0:06:39]} 13. Qc2 {[%emt 0:02:34]} c5 {[%emt 0:16:05]} 14. dxc5 {[%emt 0:06:04]} bxc5 {[%emt 0:02:53]} 15. Nh4 {[%emt 0:01:22]} Bf8 {[%emt 0:06:44]} 16. e4 {[%emt 0:10:23]} d4 {[%emt 0:00:29]} 17. a4 {[%emt 0:01:42]} Ne5 {[%emt 0:03:05]} 18. Rcd1 {[%emt 0:12:40]} Ba6 {[%emt 0:02:32]} 19. Bf1 {[%emt 0:05:05]} Bxf1 {[%emt 0:01:11]} 20. Kxf1 {[%emt 0:03:24]} Rb8 {[%emt 0:01:09]} 21. Kg2 {[%emt 0:02:31]} Qb6 {[%emt 0:04:58]} 22. Ba1 {[%emt 0:03:55]} Qa6 {[%emt 0:03:22]} 23. Ndf3 {[%emt 0:02:45]} Nxf3 {[%emt 0:03:44]} 24. Nxf3 {[%emt 0:00:57]} Qb7 {[%emt 0:00:18]} 25. e5 {[%emt 0:04:58]} Nd7 {[%emt 0:02:38]} 26. Qf5 {[%emt 0:07:50]} g6 {[%emt 0:00:23]} 27. Qf4 {[%emt 0:00:10]} Bg7 {[%emt 0:00:13]} 28. Kg1 {[%emt 0:04:47]} Qxb3 {[%emt 0:01:01]} 29. Rd2 {[%emt 0:00:06]} Qd5 {[%emt 0:01:46]} 30. Bxd4 {[%emt 0:01:44]} cxd4 {[%emt 0:00:37]} 31. Rxd4 {[%emt 0:00:05]} Qb7 {[%emt 0:00:48]} 32. e6 {[%emt 0:01:53]} fxe6 {[%emt 0:00:15]} 33. Rd3 {[%emt 0:00:17]} Nc5 {[%emt 0:01:29]} 34. Rde3 {[%emt 0:00:15]} Qd5 {[%emt 0:02:15]} 35. Ng5 {[%emt 0:03:53]} e5 {[%emt 0:00:37]} 36. Qg4 {[%emt 0:00:47]} Rb4 {[%emt 0:01:46]} 37. Qe2 {[%emt 0:00:59]} e4 {[%emt 0:00:16]} 38. h4 {[%emt 0:00:58]} Rb2 {[%emt 0:00:37]} 39. Qf1 {[%emt 0:00:24]} Bd4 {[%emt 0:04:37]} 40. Rd1 {[%emt 0:01:13]} Rf8 {[%emt 0:00:30]} 41. Nh3 {[%emt 0:30:25]} Nd3 {[%emt 0:31:44]} 0-1

[Event "Marienbad Open-A1 2019"]
[Site "Marianske Lazne"]
[Date "2019.01.21"]
[Round "3"]
[White "Cernousek, Lukas"]
[Black "Plat, Vojtech"]
[Result "1/2-1/2"]
[ECO "A41"]
[WhiteElo "2427"]
[BlackElo "2552"]
[Annotator "ChessBase"]
[PlyCount "45"]
[EventDate "2019.01.17"]
[EventType "tourn"]
[EventCountry "CZE"]
[SourceTitle "playchess.com"]
[Source "ChessBase"]
[SourceQuality "1"]
[TimeControl "40/5400+30:1800+30"]

1. d4 d6 {[%emt 0:13:34]} 2. Nf3 {[%emt 0:00:00]} Nf6 {[%emt 0:00:57]} 3. c4 {[%emt 0:00:00]} c6 {[%emt 0:00:09]} 4. g3 {[%emt 0:00:01]} Bf5 {[%emt 0:00:04]} 5. Bg2 {[%emt 0:00:17]} Nbd7 {[%emt 0:00:09]} 6. O-O {[%emt 0:00:23]} e5 {[%emt 0:00:07]} 7. Nc3 {[%emt 0:00:15]} Be7 {[%emt 0:00:23]} 8. Nh4 {[%emt 0:04:35]} Bg6 {[%emt 0:00:05]} 9. d5 {[%emt 0:13:16]} cxd5 {[%emt 0:00:22]} 10. Nxg6 {[%emt 0:00:42]} hxg6 {[%emt 0:00:10]} 11. Nxd5 {[%emt 0:00:30]} Nxd5 12. Qxd5 {[%emt 0:00:25]} Rb8 {[%emt 0:01:52]} 13. Be3 {[%emt 0:07:28]} b6 {[%emt 0:00:05]} 14. Qb5 O-O {[%emt 0:00:30]} 15. b4 {[%emt 0:29:24]} Nf6 {[%emt 0:00:21]} 16. Rfd1 {[%emt 0:06:23]} Qc8 {[%emt 0:01:08]} 17. Rac1 {[%emt 0:00:12]} Rd8 {[%emt 0:05:35]} 18. h3 {[%emt 0:04:18]} Rd7 {[%emt 0:00:55]} 19. Qa4 {[%emt 0:08:21]} Rc7 {[%emt 0:04:25]} 20. b5 {[%emt 0:00:23]} Qe6 {[%emt 0:01:07]} 21. Kh2 {[%emt 0:00:49]} e4 {[%emt 0:00:30]} 22. Rd4 {[%emt 0:02:17]} Qe5 {[%emt 0:06:51]} 23. Qd1 1/2-1/2

[Event "Marienbad Open-A1 2019"]
[Site "Marianske Lazne"]
[Date "2019.01.21"]
[Round "3"]
[White "Simek, Petr"]
[Black "Ajay Krishna, S."]
[Result "1-0"]
[ECO "A58"]
[WhiteElo "2330"]
[BlackElo "2289"]
[Annotator "NA"]
[PlyCount "69"]
[EventDate "2019.01.17"]
[EventType "tourn"]
[EventCountry "CZE"]
[SourceTitle "playchess.com"]
[Source "ChessBase"]
[SourceQuality "1"]
[TimeControl "40/5400+30:1800+30"]

1. d4 {[%emt 0:00:00]} Nf6 {[%emt 0:00:16]} 2. c4 {[%emt 0:00:00]} c5 {[%emt 0:00:13]} 3. d5 {[%emt 0:00:00]} b5 {[%emt 0:00:18]} 4. cxb5 {[%emt 0:00:00]} a6 {[%emt 0:00:09]} 5. bxa6 {[%emt 0:00:02]} e6 {[%emt 0:00:13]} 6. Nc3 {[%emt 0:00:14] A58: Benko/Volga Gambit: Lines with 5 bxa6} exd5 {[%emt 0:00:13]} 7. Nxd5 {[%emt 0:00:06]} Nxa6 {[%emt 0:00:15]} (7... Be7 8. Nf3 Nxd5 9. Qxd5 Rxa6 10. e4 Rd6 11. Qb3 Rb6 12. Qc2 O-O 13. Bc4 Nc6 {0-1 (38) Parligras,M (2645)-Nisipeanu,L (2674) Bucharest 2018}) 8. e4 {[%emt 0:00:21]} Nxd5 {[%emt 0:02:03]} 9. Qxd5 {[%emt 0:00:08]} Nc7 {[%emt 0:00:31]} 10. Qe5+ {[%emt 0:00:21]} Ne6 {[%emt 0:00:37]} 11. Bc4 $146 {[%emt 0:00:19]} ({Predecessor:} 11. Nf3 Bb7 12. Bd3 Be7 13. O-O O-O {½-½ (32) Amico,R (2393)-Acevedo Villalba,A (2558) ICCF email 2012}) 11... Be7 {[%emt 0:01:30]} 12. Ne2 {[%emt 0:00:19]} O-O {[%emt 0:05:47]} 13. O-O {[%emt 0:00:20]} Bb7 {[%emt 0:01:46]} 14. Rd1 {[%emt 0:16:50]} Ra4 {[%emt 0:12:05]} 15. Bd5 {[%emt 0:03:39]} Bf6 {[%emt 0:03:13]} 16. Qf5 {[%emt 0:02:17]} Ba6 {[%emt 0:03:10]} 17. Nc3 {[%emt 0:02:10]} Nd4 {[%emt 0:00:50]} 18. Qg4 {[%emt 0:06:27]} Rb4 {[%emt 0:07:43]} 19. Rb1 {[%emt 0:00:49]} Ne6 {[%emt 0:03:16]} 20. Be3 {[%emt 0:04:18]} Qb8 {[%emt 0:07:46]} 21. Bb3 $1 {[%emt 0:15:41]} Be5 {[%emt 0:19:08]} 22. Nd5 {[%emt 0:03:39]} Rb7 {[%emt 0:00:25]} 23. f4 {[%emt 0:18:04]} Bd4 {[%emt 0:00:45]} 24. Bxd4 {[%emt 0:02:59]} Nxd4 {[%emt 0:00:16]} 25. Ne7+ {[%emt 0:00:11]} Kh8 {[%emt 0:00:12]} 26. Nf5 {[%emt 0:02:18]} Nxf5 {[%emt 0:01:46]} 27. Qxf5 {[%emt 0:00:06]} Rb6 $2 {[%emt 0:05:08]} (27... c4 $14 28. Bc2 Rxb2) 28. Qxc5 {[%emt 0:01:45]} Rf6 {[%emt 0:00:59]} 29. Rxd7 {[%emt 0:02:50]} Rxf4 {[%emt 0:00:14]} 30. Qd6 {[%emt 0:00:21]} Rxe4 {[%emt 0:00:52]} 31. Qxa6 {[%emt 0:02:28]} Qe8 {[%emt 0:01:01]} 32. Rbd1 {[%emt 0:01:47]} h5 {[%emt 0:00:27]} 33. R7d5 {[%emt 0:03:02]} f5 {[%emt 0:00:55]} 34. Rd6 {[%emt 0:04:16]} Qe5 {[%emt 0:01:14]} 35. Rh6+ {[%emt 0:00:35]} 1-0

[Event "Marienbad Open-A1 2019"]
[Site "Marianske Lazne"]
[Date "2019.01.21"]
[Round "3"]
[White "Oboladze, Luka"]
[Black "Makarian, Rudik"]
[Result "0-1"]
[ECO "E17"]
[WhiteElo "2295"]
[BlackElo "2354"]
[Annotator "NA"]
[PlyCount "56"]
[EventDate "2019.01.17"]
[EventType "tourn"]
[EventCountry "CZE"]
[SourceTitle "playchess.com"]
[Source "ChessBase"]
[SourceQuality "1"]
[TimeControl "40/5400+30:1800+30"]

1. d4 {[%emt 0:00:00]} Nf6 {[%emt 0:00:00]} 2. c4 {[%emt 0:00:00]} e6 {[%emt 0:00:00]} 3. Nf3 {[%emt 0:00:00]} b6 {[%emt 0:00:00]} 4. g3 {[%emt 0:00:00]} Bb7 {[%emt 0:00:00]} 5. Bg2 {[%emt 0:00:00]} Be7 {[%emt 0:00:00]} 6. O-O {[%emt 0:00:04]} O-O {[%emt 0:00:00]} 7. Re1 {[%emt 0:00:07]} d5 {[%emt 0:00:01]} 8. cxd5 {[%emt 0:03:21]} exd5 {[%emt 0:00:05]} 9. Nc3 {[%emt 0:00:13]} Na6 {[%emt 0:00:14]} 10. Ne5 {[%emt 0:00:52] LiveBook: 46 Games} c5 {[%emt 0:02:01]} 11. Bf4 {[%emt 0:09:34]} Ne4 {[%emt 0:01:05] E17: Queen's Indian: 4 g3 Bb7 5 Bg2 Be7} 12. Qa4 $146 {[%emt 0:10:09]} ({Predecessor:} 12. dxc5 Bxc5 13. Nxe4 dxe4 14. Nd7 Re8 15. Nxc5 Nxc5 16. Be3 Qe7 17. Rc1 Rac8 18. Qd2 Qe6 19. b3 {½-½ (31) Ju,W (2567)-Kosteniuk,A (2557) Huaian 2017}) 12... Qe8 {[%emt 0:17:36]} 13. Qxe8 {[%emt 0:17:16]} Rfxe8 {[%emt 0:00:15]} 14. Nb5 {[%emt 0:00:36]} cxd4 {[%emt 0:02:30]} 15. Nd3 {[%emt 0:10:13]} Bf6 {[%emt 0:09:32]} 16. h4 {[%emt 0:15:06]} Bc6 {[%emt 0:03:07]} 17. a4 {[%emt 0:01:09]} Nec5 {[%emt 0:01:34]} 18. Bd6 {[%emt 0:05:02] [#]} Nxa4 $1 {[%emt 0:02:24]} 19. Nc7 {[%emt 0:06:19]} Nxc7 {[%emt 0:00:09]} 20. Bxc7 {[%emt 0:00:01]} Rac8 {[%emt 0:03:15]} 21. Nb4 {[%emt 0:00:58]} Rxc7 {[%emt 0:00:19]} 22. Nxc6 {[%emt 0:00:12]} Rxc6 {[%emt 0:00:07]} 23. Rxa4 {[%emt 0:00:11]} d3 {[%emt 0:00:04]} 24. Bxd5 {[%emt 0:03:57]} d2 {[%emt 0:00:16]} 25. Rd1 {[%emt 0:00:13]} Rc1 {[%emt 0:00:06]} 26. Bb3 {[%emt 0:00:04]} Rxe2 $19 {[%emt 0:00:26]} 27. Rxa7 {[%emt 0:01:19]} h5 {[%emt 0:00:36]} 28. Bxf7+ {[%emt 0:03:00]} Kh7 {[%emt 0:00:07]} 0-1

[Event "Marienbad Open-A1 2019"]
[Site "Marianske Lazne"]
[Date "2019.01.22"]
[Round "4"]
[White "Ajay Krishna, S."]
[Black "Oboladze, Luka"]
[Result "0-1"]
[ECO "A04"]
[WhiteElo "2289"]
[BlackElo "2295"]
[Annotator "NA"]
[PlyCount "118"]
[EventDate "2019.01.17"]
[EventType "tourn"]
[EventCountry "CZE"]
[SourceTitle "playchess.com"]
[Source "ChessBase"]
[SourceQuality "1"]
[TimeControl "40/5400+30:1800+30"]

1. Nf3 {[%emt 0:00:04]} c5 {[%emt 0:00:00]} 2. c4 {[%emt 0:00:09]} Nc6 {[%emt 0:00:00]} 3. Nc3 {[%emt 0:00:21]} g6 {[%emt 0:00:07]} 4. e3 {[%emt 0:00:13]} Nf6 {[%emt 0:00:15]} 5. d4 {[%emt 0:00:12]} cxd4 {[%emt 0:00:11]} 6. exd4 {[%emt 0:00:03]} d5 {[%emt 0:00:12]} 7. cxd5 {[%emt 0:00:24]} Nxd5 {[%emt 0:00:10]} 8. Qb3 {[%emt 0:00:20]} Nxc3 {[%emt 0:00:25]} 9. Bc4 {[%emt 0:00:09]} e6 {[%emt 0:01:58]} 10. bxc3 {[%emt 0:00:19]} Bg7 {[%emt 0:00:59]} 11. Ba3 {[%emt 0:00:28]} Bf8 {[%emt 0:00:34]} 12. Bxf8 {[%emt 0:03:13]} Kxf8 {[%emt 0:00:08]} 13. O-O {[%emt 0:00:25] A35: Symmetrical English: 2 Nc3 Nc6 3 Nf3} (13. Bd3 b6 14. Be4 Bb7 15. O-O Kg7 16. Qb5 Rc8 17. Rad1 Re8 18. c4 Na5 19. Bxb7 Nxb7 20. c5 Re7 {1-0 (81) Grachev,B (2680)-Khismatullin,D (2664) Tyumen 2012}) 13... Kg7 {[%emt 0:02:28]} 14. Qb2 {[%emt 0:03:50]} b6 {[%emt 0:11:46]} 15. Rfe1 {[%emt 0:08:57]} Bb7 {[%emt 0:02:06] [#]} 16. Bf1 $146 {[%emt 0:00:30]} ({Predecessor:} 16. Rad1 Qf6 17. Nd2 Ne7 18. Bd3 Rab8 19. Ne4 Bxe4 20. Bxe4 Rbc8 {1-0 (33) Strikovic,A (2557)-Lopez,J (2271) Marrakesh 2010}) 16... Qf6 {[%emt 0:03:54]} 17. a4 {[%emt 0:04:54]} Rhc8 {[%emt 0:08:29]} 18. c4 {[%emt 0:28:56]} Rc7 {[%emt 0:03:12]} 19. Ne5 {[%emt 0:10:15]} Rd8 {[%emt 0:04:01]} 20. Rad1 {[%emt 0:01:58]} Nxe5 {[%emt 0:05:22]} 21. dxe5 {[%emt 0:00:08]} Qg5 {[%emt 0:01:34]} 22. Rd6 {[%emt 0:01:02]} Rdc8 {[%emt 0:00:52]} 23. a5 {[%emt 0:01:46]} bxa5 {[%emt 0:11:11]} 24. Qb5 {[%emt 0:00:32]} a6 {[%emt 0:07:41]} 25. Qb6 {[%emt 0:00:13]} a4 {[%emt 0:01:07]} 26. Rd3 {[%emt 0:02:43]} Ba8 {[%emt 0:05:56]} 27. Rg3 {[%emt 0:06:10]} Qd2 {[%emt 0:02:42]} 28. Rge3 {[%emt 0:02:27]} a5 {[%emt 0:01:29]} 29. R3e2 {[%emt 0:01:56]} Qb4 {[%emt 0:01:11]} 30. Qe3 {[%emt 0:00:07]} Rxc4 {[%emt 0:01:12]} 31. Qg5 {[%emt 0:00:07]} Rf4 {[%emt 0:00:50]} 32. Re3 {[%emt 0:01:01]} h6 {[%emt 0:00:38]} 33. Qg3 {[%emt 0:00:09]} Rg4 {[%emt 0:00:27]} 34. Qh3 {[%emt 0:00:02]} Rh4 {[%emt 0:00:31]} 35. Qg3 {[%emt 0:00:02]} Qf4 {[%emt 0:00:24]} 36. Ra3 {[%emt 0:00:03]} Qxg3 {[%emt 0:00:34]} 37. hxg3 {[%emt 0:00:01]} Rb4 {[%emt 0:00:16]} 38. Rea1 {[%emt 0:00:11]} Rc5 {[%emt 0:00:25]} 39. f4 {[%emt 0:01:01]} Bc6 {[%emt 0:00:11]} 40. Be2 {[%emt 0:00:12]} g5 {[%emt 0:01:45]} 41. Rf1 {[%emt 0:30:09]} Rb3 {[%emt 0:30:38]} 42. Ra2 {[%emt 0:00:21]} Rxg3 {[%emt 0:00:25]} 43. Bh5 {[%emt 0:00:06]} Be8 {[%emt 0:07:01]} 44. f5 {[%emt 0:00:23]} exf5 {[%emt 0:00:49]} 45. Re1 {[%emt 0:00:53]} Rgc3 {[%emt 0:00:57]} 46. e6 {[%emt 0:00:22]} Rc1 {[%emt 0:00:25]} 47. Rae2 {[%emt 0:00:02]} Rxe1+ {[%emt 0:00:15]} 48. Rxe1 {[%emt 0:00:02]} Kf6 {[%emt 0:00:49]} 49. Kf2 {[%emt 0:00:18]} Rc2+ $19 {[%emt 0:01:08]} 50. Kg3 {[%emt 0:00:37]} Rc6 {[%emt 0:00:07]} 51. exf7 {[%emt 0:00:10]} Bxf7 {[%emt 0:00:07]} 52. Bxf7 {[%emt 0:00:03]} Kxf7 {[%emt 0:00:05]} 53. Re5 {[%emt 0:00:03]} f4+ {[%emt 0:00:12]} 54. Kg4 {[%emt 0:00:06]} Ra6 {[%emt 0:00:10]} 55. Rc5 {[%emt 0:00:10]} a3 {[%emt 0:00:12]} 56. Rc3 {[%emt 0:00:02]} a2 {[%emt 0:00:05]} 57. Ra3 {[%emt 0:00:03]} a4 {[%emt 0:00:04]} 58. Rxa2 {[%emt 0:00:06]} a3 {[%emt 0:00:02]} 59. Kh5 {[%emt 0:00:05]} Kg7 {[%emt 0:00:24]} 0-1